[Event "European Corporate Championship 2022"]
[Site "Rotterdam"]
[Date "2022.06.18"]
[Round "4.11"]
[White "Groenewold, Jan Joris"]
[Black "Malachi, Avraham"]
[Result "0-1"]
[ECO "A70"]
[WhiteElo "2134"]
[BlackElo "1997"]
[Annotator "TA"]
[PlyCount "66"]
[EventDate "2022.06.18"]
[EventType "team-tourn"]
[EventCountry "NED"]
[SourceTitle "playchess.com"]
[Source "ChessBase"]
[SourceQuality "1"]
[TimeControl "900+5"]

{[%evp 22,66,62,60,43,36,135,119,147,146,140,75,147,129,170,169,183,183,183,183,187,172,172,172,202,186,195,195,247,245,227,210,241,264,357,363,344,345,402,293,284,-1991,-1987,-1458,-1429,-1338,-1276]} 1. d4 {[%emt 0:00:09]} Nf6 {[%emt 0:00:01]} 2. Nf3 {[%emt 0:00:01]} g6 {[%emt 0:00:03]} 3. c4 {[%emt 0:00:01]} Bg7 {[%emt 0:00:01]} 4. Nc3 {[%emt 0:15:14]} O-O {[%emt 0:00:02]} 5. e4 {[%emt 0:00:00]} d6 {[%emt 0:00:00]} 6. h3 {[%emt 0:00:00]} c5 {[%emt 0:00:36]} 7. d5 {[%emt 0:00:00]} e6 {[%emt 0:00:07]} 8. Bd3 {[%emt 0:00:00]} exd5 {[%emt 0:00:03]} 9. cxd5 {[%emt 0:00:00]} Nbd7 {[%emt 0:00:27]} 10. O-O {[%emt 0:00:00]} Re8 {[%emt 0:00:02]} 11. Re1 {[%emt 0:00:00]} a6 {[%emt 0:00:28] 11...Ne5 injects fresh life into this line.} 12. a4 {[%emt 0:00:00][%cal Ba2a4,Ba4a5][%mdl 32]} Ne5 {[%emt 0:00:30] A70: Modern Benoni: 6 e4 g6 7 Nf3.} 13. Nxe5 {[%emt 0:00:00]} dxe5 {[%emt 0:00:01]} (13... Rxe5 $14 14. Bf4 Re8) 14. Be3 {[%emt 0:00:00]} Qd6 {[%emt 0:00:21] White is better.} 15. a5 {[%emt 0:00:00]} Bd7 {[%emt 0:00:04]} 16. Nb1 {[%emt 0:00:00] [#]} (16. b3 $142) 16... Bb5 $146 {[%emt 0:00:34]} ({Black should play} 16... c4 17. Bc2 Nh5) ({Predecessor:} 16... c4 17. Bc2 Rac8 18. Nc3 Red8 19. Qd2 Nh5 20. Ba4 Nf4 21. Bxd7 Rxd7 22. Na4 Rdd8 {0-1 (49) Korn,A (2010)-Weiss,L (2157) Austria 2013}) 17. Qc2 {[%emt 0:00:00]} Rac8 {[%emt 0:00:15]} 18. Na3 {[%emt 0:00:00]} Bxd3 {[%emt 0:00:35]} 19. Qxd3 {[%emt 0:00:00]} Nd7 {[%emt 0:00:03]} 20. Nc4 {[%emt 0:00:00]} Qe7 {[%emt 0:00:27]} 21. Qb3 {[%emt 0:00:00]} Rb8 {[%emt 0:00:17]} 22. Rac1 {[%emt 0:00:00]} f5 {[%emt 0:00:06]} 23. f3 {[%emt 0:00:00][%cal Bf2f3,Bf3e4][%mdl 32]} Kh8 {[%emt 0:00:16]} 24. Red1 {[%emt 0:00:00]} fxe4 {[%emt 0:00:04]} (24... Red8 $142 25. Nb6 Bf8 26. Nxd7 Rxd7 27. Rxc5 (27. Bxc5 Qf6 $16) 27... Qf6) 25. fxe4 $18 {[%emt 0:00:00]} Qh4 {[%emt 0:00:16]} 26. Qd3 {[%emt 0:00:00]} Nf6 {[%emt 0:00:13]} 27. Nd2 {[%emt 0:00:00]} ({Less strong is} 27. Bxc5 Nxe4 28. Bb6 Rf8 $16) 27... Bh6 {[%emt 0:00:23]} 28. Bxh6 {[%emt 0:00:00]} ({Much less strong is} 28. Rxc5 b6 29. Rc6 Qg3 $18) 28... Qxh6 {[%emt 0:00:01]} 29. Rxc5 {[%emt 0:00:00]} Nh5 {[%emt 0:00:13][%cal Bf6h5,Bh5f4,Bf4d3,Bd3b2][%mdl 32]} 30. d6 {[%emt 0:00:00]} Nf4 {[%emt 0:00:09]} 31. d7 $4 {[%emt 0:00:00][%mdl 8192] [#]} Nxd3 $19 {[%emt 0:00:18] Black is clearly winning.} 32. dxe8=Q+ {[%emt 0:02:20]} Rxe8 {[%emt 0:00:02]} 33. Rc3 {[%emt 0:00:00]} Nxb2 {[%emt 0:00:32] Weighted Error Value: White=0.45/Black=0.35} 0-1

[Event "European Corporate Championship 2022"]
[Site "Rotterdam"]
[Date "2022.06.18"]
[Round "4.12"]
[White "Breger, Baruch"]
[Black "Muller, Kenneth"]
[Result "1/2-1/2"]
[ECO "B22"]
[WhiteElo "1739"]
[BlackElo "1884"]
[Annotator "NA RC"]
[PlyCount "57"]
[EventDate "2022.06.18"]
[EventType "team-tourn"]
[EventCountry "NED"]
[SourceTitle "playchess.com"]
[Source "ChessBase"]
[SourceQuality "1"]
[TimeControl "900+5"]

1. e4 {[%emt 0:00:08]} c5 {[%emt 0:00:02]} 2. Nf3 {[%emt 0:00:03]} d6 {[%emt 0:00:02]} 3. c3 {[%emt 0:00:05]} Nf6 {[%emt 0:00:14]} 4. Be2 {[%emt 0:00:03]} Nc6 {[%emt 0:00:09]} 5. d4 {[%emt 0:00:06]} cxd4 {[%emt 0:00:41]} 6. cxd4 {[%emt 0:00:03]} g6 {[%emt 0:00:38]} 7. Nc3 {[%emt 0:00:08]} Bg7 {[%emt 0:00:04]} 8. O-O {[%emt 0:00:12]} O-O {[%emt 0:00:02]} 9. Re1 {[%emt 0:00:40]} d5 {[%emt 0:01:05]} 10. e5 {[%emt 0:00:29]} Ne8 {[%emt 0:00:33]} 11. Be3 {[%emt 0:01:05]} Nc7 {[%emt 0:00:29]} 12. Qd2 {[%emt 0:00:15]} Re8 {[%emt 0:00:04]} 13. Bh6 {[%emt 0:00:34]} Bh8 {[%emt 0:00:02]} 14. a3 {[%emt 0:00:38]} f6 {[%emt 0:00:35]} 15. Bd3 {[%emt 0:00:52]} Ne6 {[%emt 0:00:46]} 16. Bc2 {[%emt 0:02:00]} Bg7 {[%emt 0:02:45]} 17. Rad1 {[%emt 0:00:18]} f5 {[%emt 0:00:52]} 18. Bb3 {[%emt 0:00:28]} Nc7 {[%emt 0:00:03]} 19. Bxg7 {[%emt 0:00:29]} Kxg7 {[%emt 0:00:02]} 20. Qg5 {[%emt 0:00:35]} e6 {[%emt 0:00:10]} 21. Qg3 {[%emt 0:00:24]} Rf8 {[%emt 0:00:35]} 22. h4 {[%emt 0:00:35]} f4 {[%emt 0:00:08]} 23. Qg5 {[%emt 0:00:31]} h6 {[%emt 0:00:13]} 24. Qxd8 {[%emt 0:00:07]} Rxd8 {[%emt 0:00:17]} 25. Nh2 {[%emt 0:00:29]} Na5 {[%emt 0:00:32]} 26. Ba4 {[%emt 0:00:35]} Bd7 {[%emt 0:00:06]} 27. Bxd7 {[%emt 0:00:27]} Rxd7 {[%emt 0:00:02]} 28. Ng4 {[%emt 0:00:23]} Ne8 {[%emt 0:00:05]} 29. Ne2 {[%emt 0:00:19]} 1/2-1/2

[Event "European Corporate Championship 2022"]
[Site "Rotterdam"]
[Date "2022.06.18"]
[Round "4.13"]
[White "Pardo Simon, David"]
[Black "Konijn, Bart"]
[Result "1-0"]
[ECO "A12"]
[WhiteElo "2461"]
[BlackElo "2224"]
[Annotator "TA"]
[PlyCount "59"]
[EventDate "2022.06.18"]
[EventType "team-tourn"]
[EventCountry "NED"]
[SourceTitle "playchess.com"]
[Source "ChessBase"]
[SourceQuality "1"]
[TimeControl "900+5"]

{[%evp 12,59,34,32,41,23,61,50,118,113,118,103,145,115,99,87,97,92,224,200,218,216,227,202,229,198,237,252,227,224,258,227,283,260,263,213,380,372,321,295,607,310,786,778,29987,900,879,847,808,800]} 1. Nf3 {[%emt 0:00:03]} Nf6 {[%emt 0:00:02]} 2. e3 {[%emt 0:00:18]} d5 {[%emt 0:00:21]} 3. c4 {[%emt 0:00:15]} c6 {[%emt 0:00:06]} 4. b3 {[%emt 0:00:19]} g6 {[%emt 0:00:56]} 5. Bb2 {[%emt 0:00:30]} Bg7 {[%emt 0:00:03]} 6. Be2 {[%emt 0:01:32]} O-O {[%emt 0:00:51]} 7. O-O {[%emt 0:00:03]} Bf5 {[%emt 0:01:12] A12: English Opening: 1...c6 with b3 by White.} 8. Nc3 {[%emt 0:00:35][%cal Bb1c3,Bc3a4,Ba4b6][%mdl 32]} Nbd7 {[%emt 0:02:15]} 9. Nd4 {[%emt 0:01:25]} e5 {[%emt 0:00:09]} ({Black should try} 9... e6 $14) 10. Nxf5 $16 {[%emt 0:00:02]} gxf5 {[%emt 0:00:02]} 11. cxd5 {[%emt 0:00:12]} cxd5 {[%emt 0:00:02] [#]} 12. Rc1 $146 {[%emt 0:00:34]} ({Predecessor:} 12. d4 e4 13. g3 Nb6 14. a4 a5 15. Nb5 Re8 16. Rc1 Rc8 17. Qd2 Rxc1 18. Rxc1 {1-0 (31) Lashkin,J (2386)-Jaferian,K (2218) Chess.com INT 2022}) 12... a6 {[%emt 0:01:30]} 13. Na4 {[%emt 0:01:33]} Qe7 {[%emt 0:00:39]} 14. Rc7 {[%emt 0:00:44]} b5 {[%emt 0:02:02] Loses the game.} (14... Rab8 $16) 15. Nb6 $1 $18 {[%emt 0:00:24]} Rab8 {[%emt 0:00:18]} 16. Nxd7 {[%emt 0:00:22]} Nxd7 {[%emt 0:00:04]} 17. Qc2 {[%emt 0:00:47]} Qd8 {[%emt 0:01:00]} 18. Rc6 {[%emt 0:02:28]} Rc8 {[%emt 0:01:37]} 19. Rxc8 {[%emt 0:00:07]} Qxc8 {[%emt 0:00:00]} 20. Qxf5 {[%emt 0:00:14]} Nb6 {[%emt 0:00:25]} 21. Bg4 {[%emt 0:00:55][%cal Be2g4,Bg4f5,Bf5d3,Bd3b5][%mdl 32]} Qc7 {[%emt 0:00:48]} 22. Rc1 {[%emt 0:01:14]} Qd6 {[%emt 0:00:01]} 23. Qh5 $40 {[%emt 0:00:24][%cal Of2f4][%mdl 128] Strongly threatening f4! White wants a kill.} a5 $2 {[%emt 0:00:37]} (23... d4 24. Bf5 h6) 24. Bf5 {[%emt 0:00:25][%csl Gf5][%cal Rh5h7] [#]} h6 {[%emt 0:00:13]} 25. Bd3 {[%emt 0:00:24] A strong pair of Bishops.} e4 $2 {[%emt 0:00:35]} (25... b4 26. f4 Nd7) 26. Qg4 {[%emt 0:00:05][%csl Gb2][%cal Rg4g7]} f6 $2 {[%emt 0:00:23]} (26... Qg6 27. Qxg6 fxg6) 27. Bxb5 {[%emt 0:00:06]} Qb4 {[%emt 0:00:12]} 28. Qe6+ {[%emt 0:00:19]} (28. Rc7 $142 Rf7 29. Qe6 Nd7 30. Rxd7 Qf8 31. Qxd5 a4 32. Bc4 Kh8 33. Rxf7) 28... Kh8 {[%emt 0:00:10]} 29. Qxb6 {[%emt 0:00:02]} Qxd2 {[%emt 0:00:02]} 30. Qd4 {[%emt 0:00:02] Weighted Error Value: White=0.38/Black=0.92} 1-0

[Event "European Corporate Championship 2022"]
[Site "Rotterdam"]
[Date "2022.06.18"]
[Round "4.14"]
[White "Schelvis, Richard"]
[Black "Jain Aum"]
[Result "1-0"]
[ECO "D34"]
[WhiteElo "2157"]
[BlackElo "1591"]
[Annotator "TA"]
[PlyCount "139"]
[EventDate "2022.06.18"]
[EventType "team-tourn"]
[EventCountry "NED"]
[SourceTitle "playchess.com"]
[Source "ChessBase"]
[SourceQuality "1"]
[TimeControl "900+5"]

{[%evp 22,139,51,36,29,6,37,33,26,41,43,25,54,37,64,57,60,64,61,61,54,53,64,64,56,54,67,54,63,45,57,58,100,58,97,58,149,76,212,125,335,304,375,302,297,299,363,358,429,428,613,608,598,562,565,552,521,458,839,779,735,655,831,819,812,808,765,669,768,748,870,807,1061,891,1212,1212,5222,5093,3072,2457,6448,6195,29971,29972,29977,29978,29977,29979,29979,29979,29980,29979,29979,29980,29983,29984,29984,29984,29986,29987,29988,29989,29989,29990,29990,29991,29991,29992,29992,29993,29993,29994,29994,29995,29995,29995,29997,29998,29998,29999]} 1. d4 {[%emt 0:00:02]} e6 {[%emt 0:00:09]} 2. Nf3 {[%emt 0:00:05]} d5 {[%emt 0:00:19]} 3. g3 {[%emt 0:00:02]} Nf6 {[%emt 0:00:24]} 4. Bg2 {[%emt 0:00:05]} c5 {[%emt 0:00:11]} 5. O-O {[%emt 0:00:04]} Nc6 {[%emt 0:01:21]} 6. c4 {[%emt 0:00:17]} cxd4 {[%emt 0:03:17]} 7. Nxd4 {[%emt 0:00:06]} Bc5 {[%emt 0:00:14]} 8. Nb3 {[%emt 0:00:23]} Be7 {[%emt 0:00:41]} 9. cxd5 {[%emt 0:00:12]} exd5 {[%emt 0:02:08]} 10. Nc3 {[%emt 0:00:14]} Be6 {[%emt 0:00:03]} 11. Bg5 {[%emt 0:00:22]} O-O {[%emt 0:00:14]} 12. Nd4 {[%emt 0:00:15]} h6 {[%emt 0:01:29] D34: Tarrasch Defence: 6 g3 Nf6 7 Bg2 Be7.} 13. Bf4 {[%emt 0:00:16]} Bd6 {[%emt 0:00:34] [#]} (13... Qb6 $5 {[%cal Rb6d4]} 14. Nxe6 fxe6 $11) 14. Bxd6 $146 {[%emt 0:00:47]} ({Predecessor:} 14. Nxe6 fxe6 15. Bxd6 Qxd6 16. Rc1 Rad8 17. Qa4 a6 18. e3 Ne5 19. Qd4 Rd7 20. f4 {1-0 (54) Goy,U (2236)-Kripp,W (2038) Bad Woerishofen 2005}) 14... Qxd6 {[%emt 0:00:01] White is slightly better.} 15. e3 {[%emt 0:00:05]} Rad8 {[%emt 0:00:16]} 16. Rc1 {[%emt 0:00:19]} a6 {[%emt 0:00:13]} 17. Nce2 {[%emt 0:00:11]} g5 {[%emt 0:01:09]} 18. a3 {[%emt 0:00:39]} Bg4 {[%emt 0:00:47]} 19. Qc2 {[%emt 0:00:52][%cal Rd4c6]} Rc8 {[%emt 0:03:10] [#] aiming for ...Nxd4.} 20. Nf5 {[%emt 0:00:17]} Bxf5 {[%emt 0:00:00]} 21. Qxf5 {[%emt 0:00:02]} Qe6 {[%emt 0:00:00]} 22. Qd3 {[%emt 0:00:17]} Ne5 {[%emt 0:00:00]} 23. Qb3 {[%emt 0:00:08]} b5 {[%emt 0:00:00]} 24. Nd4 {[%emt 0:00:10]} Qd7 {[%emt 0:00:00]} 25. Rfd1 {[%emt 0:00:39]} Rxc1 {[%emt 0:00:00]} 26. Rxc1 {[%emt 0:00:01]} Nc4 {[%emt 0:00:00] White now steadily converts the win.} 27. Rd1 {[%emt 0:00:06]} Rd8 {[%emt 0:00:00]} 28. Qc2 {[%emt 0:00:18]} h5 {[%emt 0:00:00]} (28... Rc8 $14) 29. Qc1 {[%emt 0:00:52]} (29. Nf5 $142) 29... Nd6 {[%emt 0:00:13] [#]} (29... Ne5 $16 {was necessary.}) 30. Qc6 {[%emt 0:00:43]} (30. e4 $1 $18 Nfxe4 31. Bxe4 Nxe4 32. f3) 30... Nde4 {[%emt 0:00:22]} (30... Qxc6 $16 {was worth a try.} 31. Nxc6 Rd7) 31. Qxa6 {[%emt 0:00:20]} Rb8 {[%emt 0:00:05]} 32. Qc6 {[%emt 0:00:18]} Qxc6 {[%emt 0:00:10]} 33. Nxc6 {[%emt 0:00:02]} Rb7 {[%emt 0:00:02]} 34. Nb4 {[%emt 0:00:37]} Rd7 {[%emt 0:00:08]} 35. Nxd5 {[%emt 0:00:23] And now Bxe4 would win.} Rxd5 {[%emt 0:00:13]} (35... Kg7 $142 36. Rd4 Rxd5) 36. Rxd5 $18 {[%emt 0:00:02]} Nxd5 {[%emt 0:00:01]} 37. Bxe4 {[%emt 0:00:01][%mdl 4096] Endgame KB-KN} Nc7 {[%emt 0:00:06]} 38. Bf3 {[%emt 0:00:19]} g4 {[%emt 0:00:08]} 39. Bc6 {[%emt 0:00:02]} f6 {[%emt 0:00:05]} (39... Kf8 $142 40. h3 Ke7) 40. b3 {[%emt 0:00:08]} Kf7 {[%emt 0:00:02]} 41. a4 {[%emt 0:00:02]} bxa4 {[%emt 0:00:05]} 42. bxa4 {[%emt 0:00:02]} Ke6 {[%emt 0:00:06]} 43. Kf1 {[%emt 0:00:12]} Kd6 {[%emt 0:00:03]} 44. Bb5 {[%emt 0:00:14]} Kc5 {[%emt 0:00:08]} 45. Ke2 {[%emt 0:00:02]} Kd5 {[%emt 0:00:05]} 46. Kd3 {[%emt 0:00:02]} Ke5 {[%emt 0:00:07]} 47. Bc4 {[%emt 0:00:11]} Ne8 {[%emt 0:00:05]} 48. a5 {[%emt 0:00:04][%cal Ba4a5,Ba5a6][%mdl 32]} Nd6 {[%emt 0:00:02]} 49. a6 {[%emt 0:00:04] White wants to mate with a7.} Nc8 {[%emt 0:00:00]} 50. Bf7 {[%emt 0:00:05]} Kd6 {[%emt 0:00:13]} 51. Bxh5 {[%emt 0:00:04]} Kc6 {[%emt 0:00:02]} 52. Bxg4 {[%emt 0:00:02] White mates.} Nd6 {[%emt 0:00:06]} 53. Bf3+ {[%emt 0:00:05]} Kb6 {[%emt 0:00:02]} 54. Bb7 {[%emt 0:00:02]} Nf5 {[%emt 0:00:10]} 55. h4 {[%emt 0:00:04]} Nh6 {[%emt 0:00:02]} 56. Kd4 {[%emt 0:00:03]} Ng4 {[%emt 0:00:02]} 57. h5 {[%emt 0:00:05]} Ne5 {[%emt 0:00:03]} 58. h6 {[%emt 0:00:04]} Ng6 {[%emt 0:00:01]} 59. Kd5 {[%emt 0:00:03]} f5 {[%emt 0:00:05]} 60. Ke6 {[%emt 0:00:03]} f4 {[%emt 0:00:07]} 61. exf4 {[%emt 0:00:03]} Nh8 {[%emt 0:00:05]} 62. Kf6 {[%emt 0:00:04]} Ka7 {[%emt 0:00:11]} 63. Kg7 {[%emt 0:00:01]} Kb6 {[%emt 0:00:01]} 64. Kxh8 {[%emt 0:00:03]} Ka7 {[%emt 0:00:01]} 65. Kg7 {[%emt 0:00:01]} Kb6 {[%emt 0:00:05]} 66. h7 {[%emt 0:00:02]} Ka7 {[%emt 0:00:02]} 67. h8=Q {[%emt 0:07:52]} Kb6 {[%emt 0:00:00]} 68. Bg2 {[%emt 0:00:00]} Ka5 {[%emt 0:00:04]} 69. Qb8 {[%emt 0:00:00]} Ka4 {[%emt 0:00:02]} 70. a7 {[%emt 0:00:00] Weighted Error Value: White=0.20 (precise) /Black=0.43} 1-0

[Event "European Corporate Championship 2022"]
[Site "Rotterdam"]
[Date "2022.06.18"]
[Round "4.15"]
[White "Maral Pranav"]
[Black "Jap Tjoen San, Linda"]
[Result "0-1"]
[ECO "B07"]
[WhiteElo "1329"]
[BlackElo "2045"]
[Annotator "TA"]
[PlyCount "97"]
[EventDate "2022.06.18"]
[EventType "team-tourn"]
[EventCountry "NED"]
[SourceTitle "playchess.com"]
[Source "ChessBase"]
[SourceQuality "1"]
[TimeControl "900+5"]

{[%evp 9,97,-4,2,9,31,22,30,27,37,31,134,125,166,-17,87,66,73,0,32,38,77,86,159,150,151,107,129,123,116,125,110,88,236,236,327,293,356,355,481,485,793,759,1638,930,783,922,912,779,897,887,6241,6020,29993,29994,29994,29995,29997,29998,29998,77,106,110,500,514,854,847,946,837,954,952,1441,804,804,783,806,761,802,777,844,718,1108,476,29994,443,408,341,320,281,248,0]} 1. d4 {[%emt 0:00:02]} d6 {[%emt 0:00:01]} 2. e4 {[%emt 0:00:08]} Nf6 {[%emt 0:00:15]} 3. f3 {[%emt 0:00:13]} Nbd7 {[%emt 0:00:30]} 4. Bc4 {[%emt 0:00:12]} c6 {[%emt 0:00:16]} 5. Nc3 {[%emt 0:00:21]} e5 {[%emt 0:00:47]} 6. Nge2 {[%emt 0:00:17] B07: Pirc Defence: Miscellaneous Systems.} a5 {[%emt 0:00:09]} 7. a4 {[%emt 0:00:52]} Be7 {[%emt 0:00:04]} 8. Be3 {[%emt 0:00:28] White has an edge.} O-O {[%emt 0:00:03][%cal Od6d5]} 9. Qd2 {[%emt 0:00:09]} b6 {[%emt 0:01:38] [#]} (9... exd4 $14 10. Bxd4 (10. Qxd4 Re8 $11) 10... Nb6) 10. O-O-O $146 {[%emt 0:00:46]} ({Predecessor:} 10. O-O Ba6 11. Bxa6 Rxa6 12. Ng3 g6 13. d5 cxd5 14. Nxd5 Nxd5 15. Qxd5 Ra8 16. Ne2 {0-1 (50) Kajmakoski,K (2055)-Jankov,S (2152) Struga 2008}) 10... Ba6 {[%emt 0:00:04]} 11. Bb3 {[%emt 0:01:12]} (11. Bxa6 $18 Rxa6 12. Kb1) 11... Bxe2 {[%emt 0:00:06]} (11... b5 $1 $11) 12. Nxe2 {[%emt 0:00:16]} b5 {[%emt 0:00:30]} 13. Nc3 {[%emt 0:00:48] Inhibits d5.} (13. Ng3 $16) 13... b4 {[%emt 0:01:02]} 14. Ne2 {[%emt 0:00:14]} Re8 {[%emt 0:02:12]} 15. g4 {[%emt 0:00:20][%cal Bg2g4,Bg4g5][%mdl 32] g5 is the strong threat.} Nf8 {[%emt 0:00:14]} ({Better is} 15... c5) 16. g5 {[%emt 0:00:42]} Nh5 {[%emt 0:00:17]} 17. h4 {[%emt 0:00:33][%cal Bh2h4,Bh4h5][%mdl 32]} Rc8 {[%emt 0:02:19]} 18. dxe5 {[%emt 0:02:15]} dxe5 {[%emt 0:00:01]} 19. Qe1 {[%emt 0:00:36]} Qc7 {[%emt 0:00:01]} 20. Ng3 {[%emt 0:00:19]} Nxg3 {[%emt 0:00:24]} (20... Nf4 $16) 21. Qxg3 $18 {[%emt 0:00:02]} Ne6 {[%emt 0:00:40]} 22. h5 {[%emt 0:00:35] [#] aiming for g6.} c5 {[%emt 0:00:17] White must now prevent ...c4.} 23. Bc4 {[%emt 0:00:09]} Bf8 {[%emt 0:00:38]} 24. g6 {[%emt 0:00:11]} h6 {[%emt 0:00:25] [#]} (24... Kh8 $142 25. gxf7 Qxf7) 25. Bxh6 $1 {[%emt 0:01:11][%mdl 512]} fxg6 {[%emt 0:00:41]} (25... b3 26. cxb3) 26. Qxg6 {[%emt 0:00:53]} Qf7 {[%emt 0:00:01]} 27. Be3 {[%emt 0:01:27] A strong pair of Bishops.} Rc7 {[%emt 0:01:12]} 28. Qg4 {[%emt 0:00:45]} Kh7 {[%emt 0:00:58]} 29. Rdg1 {[%emt 0:00:18]} Qf6 {[%emt 0:00:56]} 30. Qg6+ {[%emt 0:00:17]} Qxg6 {[%emt 0:00:04]} 31. hxg6+ {[%emt 0:00:02]} Kg8 {[%emt 0:00:00]} 32. Rh7 {[%emt 0:00:04]} Bd6 {[%emt 0:00:05]} 33. Bg5 {[%emt 0:00:12]} Be7 {[%emt 0:00:27]} 34. Rgh1 $2 {[%emt 0:00:08]} Bxg5+ $16 {[%emt 0:00:01]} 35. Kb1 {[%emt 0:00:04][%csl Gh1][%cal Rh7h8]} Bh6 $2 {[%emt 0:00:00][%mdl 8192]} (35... Kf8 $16 {is a better chance.}) 36. R1xh6 $18 {[%emt 0:00:05]} gxh6 {[%emt 0:00:00]} (36... Kf8 $142 37. Rh5 Ke7 38. Rxe5 Kf6) 37. Rxc7 {[%emt 0:00:02][%mdl 4096] Endgame KRB-KRN} Kh8 {[%emt 0:00:00]} 38. Rh7+ {[%emt 0:00:01]} Kg8 {[%emt 0:00:00]} 39. Kc1 {[%emt 0:00:01]} Kf8 {[%emt 0:00:00]} 40. Rf7+ {[%emt 0:00:01]} Kg8 {[%emt 0:00:00]} 41. Bd5 {[%emt 0:00:50]} h5 {[%emt 0:00:00]} 42. Kd1 {[%emt 0:00:02]} h4 {[%emt 0:00:00]} 43. Ke2 {[%emt 0:00:18]} Nd4+ {[%emt 0:00:36]} 44. Kd2 {[%emt 0:00:15]} h3 {[%emt 0:00:19]} 45. Rh7+ {[%emt 0:00:02]} (45. Re7+ $142 Kf8 46. Rxe8+ Kg7 47. Rg8+ Kf6 48. Ke3) 45... Kf8 {[%emt 0:00:00]} (45... Ne6 $18 46. Ke3 Kf8 47. Rxh3 (47. Rh8+ Kg7 $18) 47... Kg7 48. Rh7+ Kxg6) 46. Rxh3 {[%emt 0:00:04]} (46. g7+ $142 Ke7 47. g8=Q+ Kd8 48. Qf7 Nb3+ 49. cxb3 Re7 50. Qxe7+ Kc8 51. Rh8#) 46... Kg7 {[%emt 0:00:01]} 47. Bf7 {[%emt 0:00:07]} Rd8 {[%emt 0:00:03]} 48. Rh7+ {[%emt 0:00:07]} Kf6 {[%emt 0:00:01]} 49. Kc1 $2 {[%emt 0:00:14][%mdl 32768] Weighted Error Value: White=0.76/Black=0.89. Sensor Board Error (Ke4/e5)?} (49. Rh5 $18) 0-1

[Event "European Corporate Championship 2022"]
[Site "Rotterdam"]
[Date "2022.06.18"]
[Round "4.17"]
[White "Kanyamarala, Tarun"]
[Black "Giri, Anish"]
[Result "0-1"]
[ECO "D00"]
[WhiteElo "2388"]
[BlackElo "2761"]
[Annotator "TA"]
[PlyCount "80"]
[EventDate "2022.06.18"]
[EventType "team-tourn"]
[EventCountry "NED"]
[SourceTitle "playchess.com"]
[Source "ChessBase"]
[SourceQuality "1"]
[TimeControl "900+5"]

{[%evp 9,80,-5,0,-6,-7,-5,-6,-22,-15,-23,0,-17,0,0,0,6,4,0,11,1,3,-16,-28,-22,-19,-24,-26,-29,-23,-32,-41,-62,-26,-37,-25,-42,-37,-29,-25,-22,-16,-36,-25,-38,-38,-49,-29,-50,-18,-24,4,0,0,0,8,-20,0,0,32,0,12,-85,-70,-645,-649,-641,-633,-651,-640,-720,-719,-1230,-1212]} 1. d4 {[%emt 0:00:01]} Nf6 {[%emt 0:00:01]} 2. Nc3 {[%emt 0:00:02]} d5 {[%emt 0:00:01]} 3. Bf4 {[%emt 0:00:02]} e6 {[%emt 0:00:02]} 4. Nb5 {[%emt 0:00:02]} Bb4+ {[%emt 0:00:01]} 5. c3 {[%emt 0:00:01]} Ba5 {[%emt 0:00:02]} 6. e3 {[%emt 0:00:16] D00: 1 d4 d5: Unusual lines.} O-O {[%emt 0:00:03]} 7. Nf3 {[%emt 0:00:05]} Nbd7 {[%emt 0:00:14]} 8. Bd3 {[%emt 0:00:10] The position is equal.} a6 {[%emt 0:00:02]} 9. Na3 {[%emt 0:00:03]} Re8 {[%emt 0:00:54]} 10. O-O {[%emt 0:00:35]} c5 {[%emt 0:00:03] [#]} 11. Ne5 $146 {[%emt 0:01:03]} ({Predecessor:} 11. dxc5 Nxc5 12. Bc2 Bc7 13. Be5 Nfe4 14. Qd4 Bxe5 15. Nxe5 f6 16. Nd3 e5 17. Qb4 {1-0 (57) Bettalli,F (2287)-Marcinczyk,M (1967) Chess.com INT 2022}) 11... Bc7 {[%emt 0:00:16]} 12. Qf3 {[%emt 0:00:17]} Nxe5 {[%emt 0:01:09]} 13. Bxe5 {[%emt 0:01:15]} Nd7 {[%emt 0:00:23]} 14. Bxc7 {[%emt 0:01:15]} Qxc7 {[%emt 0:00:02]} 15. Qh3 {[%emt 0:00:09]} Nf6 {[%emt 0:00:09]} 16. Qh4 $1 {[%emt 0:01:10]} e5 {[%emt 0:00:06]} 17. dxe5 {[%emt 0:00:10]} Qxe5 {[%emt 0:00:09]} 18. Nc2 {[%emt 0:00:12]} Bf5 {[%emt 0:00:10]} 19. Ne1 {[%emt 0:00:06]} Be4 {[%emt 0:00:08]} 20. Nf3 {[%emt 0:00:31]} Qf5 {[%emt 0:01:56]} 21. Be2 {[%emt 0:00:29]} Rad8 {[%emt 0:00:06]} 22. Rac1 {[%emt 0:00:31]} h6 {[%emt 0:00:03]} 23. Rfd1 {[%emt 0:01:54]} Rd7 {[%emt 0:00:17]} 24. h3 {[%emt 0:00:40]} Rde7 {[%emt 0:01:02]} 25. Ne1 {[%emt 0:00:54]} Qc8 {[%emt 0:00:12]} 26. Nd3 {[%emt 0:00:26]} Qc6 {[%emt 0:00:09]} 27. Qg3 {[%emt 0:00:42]} a5 {[%emt 0:00:27]} 28. Bf1 {[%emt 0:00:30]} b6 {[%emt 0:00:03]} 29. b3 {[%emt 0:00:25]} Bf5 {[%emt 0:00:08]} 30. c4 {[%emt 0:00:45]} dxc4 {[%emt 0:00:14]} 31. Rxc4 {[%emt 0:00:03]} Bc8 {[%emt 0:00:35]} 32. Nf4 {[%emt 0:00:31]} Re5 {[%emt 0:00:24]} 33. Rc2 {[%emt 0:00:37]} Rg5 {[%emt 0:00:06]} 34. Qh4 {[%emt 0:00:02]} (34. Qh2 $5 {[%cal Rc2d2]}) 34... Ne4 {[%emt 0:00:21]} 35. Bc4 {[%emt 0:00:18]} (35. f3 $1 $11 {remains equal.} Ng3 36. e4) 35... Qf6 {[%emt 0:00:02][%cal Og5d5] aiming for ...Rd5!} 36. Kh1 $2 {[%emt 0:01:01][%mdl 8192] [#] White does not recover from this.} (36. Kh2 $15) 36... Rd5 $3 $19 {[%emt 0:00:12][%mdl 512] Black is clearly winning.} 37. Bxd5 {[%emt 0:00:33]} Qxh4 {[%emt 0:00:02]} 38. Bxe4 {[%emt 0:00:02]} Rxe4 {[%emt 0:00:01]} 39. Rcd2 {[%emt 0:00:03]} Bb7 {[%emt 0:00:26] Hoping for ...Rxf4.} 40. Rd7 {[%emt 0:00:17]} Rxf4 {[%emt 0:00:06] Weighted Error Value: White=0.46/Black=0.08 (flawless)} 0-1